Workbook

Sheet Sheet1
C1: The cost of growing crops This tool can be used to understand basic costs of growing different types of crops. It is recommended to calculate your own cost of production in order to make informed decisions for your businesses - averages without context doesn’t tell the full story …. Every farm is different. Edit yield figures, costs and prices to complete different scenario planning.
C4: Data abstracted from John Nix 47th Edition Edit these figures to suit your farm costs Calculate your accurate costs through www.farmbench.ahdb.org.uk | J4: Data abstracted from John Nix 47th Edition Edit these figures to suit your farm costs Calculate your accurate costs through www.farmbench.ahdb.org.uk
A5: Crop | C5: Yield t/ha | D5: Average Cost of Production | F5: Price per tonne | G5: Total income | H5: Profit | J5: Labour Cost Removed (regular labour unpaid) | L5: Rent Cost Removed | N5: Add Single Farm Payment??
D6: £/Ha | F6: 2019-03-01 | G6: £/Ha | H6: £/Ha | J6: 225 | L6: 100 | N6: 100
A7: Winter Feed Wheat | B7: Lowest | C7: 7.25 | D7: Variable | E7: 663 | F7: 130 | G7: =C7*F7 -> 942.5 | H7: =G7-E9 -> -640.5 | J7: =H7+J6 -> -415.5 | L7: =J7+L6 -> -315.5 | N7: =L7+N6 -> -215.5
B8: Average | C8: 8.5 | D8: Fixed | E8: 920 | G8: =C8*F7 -> 1105 | H8: =G8-E9 -> -478 | J8: =H8+J6 -> -253 | L8: =J8+L6 -> -153 | N8: =L8+N6 -> -53
B9: Highest | C9: 9.75 | D9: Total | E9: =E7+E8 -> 1583 | G9: =C9*F7 -> 1267.5 | H9: =G9-E9 -> -315.5 | J9: =H9+J6 -> -90.5 | L9: =J9+L6 -> 9.5 | N9: =L9+N6 -> 109.5
A10: Winter Milling Wheat | B10: Lowest | C10: 6.75 | D10: Variable | E10: 479 | F10: 146 | G10: =C10*F10 -> 985.5 | H10: =G10-E12 -> -413.5 | J10: =H10+J6 -> -188.5 | L10: =J10+L6 -> -88.5 | N10: =L10+N6 -> 11.5
B11: Average | C11: 7.8 | D11: Fixed | E11: 920 | G11: =C11*F10 -> 1138.8 | H11: =G11-E12 -> -260.2 | J11: =H11+J6 -> -35.2 | L11: =J11+L6 -> 64.8 | N11: =L11+N6 -> 164.8
B12: Highest | C12: 9 | D12: Total | E12: =E10+E11 -> 1399 | G12: =C12*F10 -> 1314 | H12: =G12-E12 -> -85 | J12: =H12+J6 -> 140 | L12: =J12+L6 -> 240 | N12: =L12+N6 -> 340
A13: Spring Wheat (Mostly Milling) | B13: Lowest | C13: 4.75 | D13: Variable | E13: 322 | F13: 145 | G13: =C13*F13 -> 688.75 | H13: =G13-E15 -> -553.25 | J13: =H13+J6 -> -328.25 | L13: =J13+L6 -> -228.25 | N13: =L13+N6 -> -128.25
B14: Average | C14: 5.75 | D14: Fixed | E14: 920 | G14: =C14*F13 -> 833.75 | H14: =G14-E15 -> -408.25 | J14: =H14+J6 -> -183.25 | L14: =J14+L6 -> -83.25 | N14: =L14+N6 -> 16.75
B15: Highest | C15: 4.75 | D15: Total | E15: =E13+E14 -> 1242 | G15: =C15*F13 -> 688.75 | H15: =G15-E15 -> -553.25 | J15: =H15+J6 -> -328.25 | L15: =J15+L6 -> -228.25 | N15: =L15+N6 -> -128.25
A16: Winter Feed Barley | B16: Lowest | C16: 5.5 | D16: Variable | E16: 351 | F16: 120 | G16: =C16*F16 -> 660 | H16: =G16-E18 -> -611 | J16: =H16+J6 -> -386 | L16: =J16+L6 -> -286 | N16: =L16+N6 -> -186
B17: Average | C17: 6.9 | D17: Fixed | E17: 920 | G17: =C17*F16 -> 828 | H17: =G17-E18 -> -443 | J17: =H17+J6 -> -218 | L17: =J17+L6 -> -118 | N17: =L17+N6 -> -18
B18: Highest | C18: 7.9 | D18: Total | E18: =E16+E17 -> 1271 | G18: =C18*F16 -> 948 | H18: =G18-E18 -> -323 | J18: =H18+J6 -> -98 | L18: =J18+L6 -> 2 | N18: =L18+N6 -> 102
A19: Winter Malting Barley | B19: Lowest | C19: 5 | D19: Variable | E19: 328 | F19: 136 | G19: =C19*F19 -> 680 | H19: =G19-E21 -> -568 | J19: =H19+J6 -> -343 | L19: =J19+L6 -> -243 | N19: =L19+N6 -> -143
B20: Average | C20: 6 | D20: Fixed | E20: 920 | G20: =C20*F19 -> 816 | H20: =G20-E21 -> -432 | J20: =H20+J6 -> -207 | L20: =J20+L6 -> -107 | N20: =L20+N6 -> -7
B21: Highest | C21: 7 | D21: Total | E21: =E19+E20 -> 1248 | G21: =C21*F19 -> 952 | H21: =G21-E21 -> -296 | J21: =H21+J6 -> -71 | L21: =J21+L6 -> 29 | N21: =L21+N6 -> 129
A22: Spring Malting Barley | B22: Lowest | C22: 4.6 | D22: Variable | E22: 273 | F22: 146 | G22: =C22*F22 -> 671.6 | H22: =G22-E24 -> -521.4 | J22: =H22+J6 -> -296.4 | L22: =J22+L6 -> -196.4 | N22: =L22+N6 -> -96.4
B23: Average | C23: 5.45 | D23: Fixed | E23: 920 | G23: =C23*F22 -> 795.7 | H23: =G23-E24 -> -397.3 | J23: =H23+J6 -> -172.3 | L23: =J23+L6 -> -72.3 | N23: =L23+N6 -> 27.7
B24: Highest | C24: 6.3 | D24: Total | E24: =E22+E23 -> 1193 | G24: =C24*F22 -> 919.8 | H24: =G24-E24 -> -273.2 | J24: =H24+J6 -> -48.2 | L24: =J24+L6 -> 51.8 | N24: =L24+N6 -> 151.8
A25: Winter Oats | B25: Lowest | C25: 5.25 | D25: Variable | E25: 267 | F25: 120 | G25: =C25*F25 -> 630 | H25: =G25-E27 -> -557 | J25: =H25+J6 -> -332 | L25: =J25+L6 -> -232 | N25: =L25+N6 -> -132
B26: Average | C26: 6.3 | D26: Fixed | E26: 920 | G26: =C26*F25 -> 756 | H26: =G26-E27 -> -431 | J26: =H26+J6 -> -206 | L26: =J26+L6 -> -106 | N26: =L26+N6 -> -6
B27: Highest | C27: 7.65 | D27: Total | E27: =E25+E26 -> 1187 | G27: =C27*F25 -> 918 | H27: =G27-E27 -> -269 | J27: =H27+J6 -> -44 | L27: =J27+L6 -> 56 | N27: =L27+N6 -> 156
A28: Spring Oats | B28: Lowest | C28: 4.5 | D28: Variable | E28: 217 | F28: 120 | G28: =C28*F28 -> 540 | H28: =G28-E30 -> -597 | J28: =H28+J9 -> -687.5 | L28: =J28+L9 -> -678 | N28: =L28+N6 -> -578
B29: Average | C29: 5.5 | D29: Fixed | E29: 920 | G29: =C29*F28 -> 660 | H29: =G29-E30 -> -477 | J29: =H29+J9 -> -567.5 | L29: =J29+L9 -> -558 | N29: =L29+N6 -> -458
B30: Highest | C30: 6.5 | D30: Total | E30: =E28+E29 -> 1137 | G30: =C30*F28 -> 780 | H30: =G30-E30 -> -357 | J30: =H30+J9 -> -447.5 | L30: =J30+L9 -> -438 | N30: =L30+N6 -> -338
A31: Winter Oilseed Rape | B31: Lowest | C31: 2.4 | D31: Variable | E31: 408 | F31: 300 | G31: =C31*F31 -> 720 | H31: =G31-E33 -> -608 | J31: =H31+J6 -> -383 | L31: =J31+L6 -> -283 | N31: =L31+N6 -> -183
B32: Average | C32: 3.4 | D32: Fixed | E32: 920 | G32: =C32*F31 -> 1020 | H32: =G32-E33 -> -308 | J32: =H32+J6 -> -83 | L32: =J32+L6 -> 17 | N32: =L32+N6 -> 117
B33: Highest | C33: 4.4 | D33: Total | E33: =E31+E32 -> 1328 | G33: =C33*F31 -> 1320 | H33: =G33-E33 -> -8 | J33: =H33+J6 -> 217 | L33: =J33+L6 -> 317 | N33: =L33+N6 -> 417
A34: Spring Oilseed Rape | B34: Lowest | C34: 1.5 | D34: Variable | E34: 257 | F34: 300 | G34: =C34*F34 -> 450 | H34: =G34-E36 -> -727 | J34: =H34+J9 -> -817.5 | L34: =J34+L9 -> -808 | N34: =L34+N6 -> -708
B35: Average | C35: 2 | D35: Fixed | E35: 920 | G35: =C35*F34 -> 600 | H35: =G35-E36 -> -577 | J35: =H35+J9 -> -667.5 | L35: =J35+L9 -> -658 | N35: =L35+N6 -> -558
B36: Highest | C36: 2.75 | D36: Total | E36: =E34+E35 -> 1177 | G36: =C36*F34 -> 825 | H36: =G36-E36 -> -352 | J36: =H36+J9 -> -442.5 | L36: =J36+L9 -> -433 | N36: =L36+N6 -> -333
A38: For more information and guidance on how to calculate your costs of production, go to: www.farmbench.ahdb.org.uk To assist with understanding the potential price that can be obtained for your crop, go to: https://ahdb.org.uk/markets-and-prices
